fUSD/lending_fUSD_20241219
["ID","MTS","AMOUNT","RATE_DAILY","PERIOD"]
[346019851,1734629443836,-500.0,0.00024992,4]
[346019852,1734629443851,-549.21384264,0.00024993,4]
[346019853,1734629443861,-563.01,0.00024993,4]
[346019854,1734629443870,-500.0,0.00024993,4]
[346019855,1734629443879,-500.0,0.00024993,4]
[346019856,1734629443888,-203.53777863,0.00024993,4]
[346019857,1734629443899,-500.0,0.00024993,4]
[346019858,1734629443908,-500.0,0.00024993,4]
[346019859,1734629443918,-500.0,0.00024993,4]
[346019860,1734629443928,-500.0,0.00024993,4]
[346019861,1734629443937,-1143.29,0.00024993,4]
[346019862,1734629443947,-500.0,0.00024993,4]
[346019863,1734629443957,-500.0,0.00024993,4]
[346019864,1734629443967,-500.0,0.00024993,4]
[346019865,1734629443977,-500.0,0.00024993,4]
[346019866,1734629443986,-500.0,0.00024993,4]
[346019867,1734629443996,-422.56823958,0.00024993,4]
[346019868,1734629444006,-500.0,0.00024993,4]
[346019869,1734629444016,-522.53,0.00024993,4]
[346019870,1734629444026,-500.0,0.00024993,4]
[346019871,1734629444036,-500.0,0.00024993,4]
[346019872,1734629444045,-500.0,0.00024993,4]
[346019873,1734629444055,-500.0,0.00024993,4]
[346019874,1734629444065,-680.45,0.00024993,4]
[346019875,1734629444076,-500.0,0.00024993,4]
[346019876,1734629444086,-500.0,0.00024993,4]
[346019877,1734629444100,-500.0,0.00024993,4]
[346019878,1734629444110,-500.0,0.00024993,4]
[346019879,1734629444120,-500.0,0.00024993,4]
[346019880,1734629444129,-508.7,0.00024993,4]
[346019881,1734629444139,-500.0,0.00024993,4]
[346019882,1734629444154,-500.0,0.00024993,4]
[346019883,1734629444168,-500.0,0.00024993,4]
[346019884,1734629444177,-500.0,0.00024993,4]
[346019885,1734629444191,-500.0,0.00024993,4]
[346019886,1734629444200,-508.95,0.00024993,4]
[346019887,1734629444210,-500.0,0.00024993,4]
[346019888,1734629444220,-500.0,0.00024993,4]
[346019889,1734629444228,-500.0,0.00024993,4]
[346019890,1734629444238,-500.0,0.00024993,4]
[346019891,1734629444248,-500.0,0.00024993,4]
[346019892,1734629444258,-500.0,0.00024993,4]
[346019893,1734629444269,-500.0,0.00024993,4]
[346019894,1734629444279,-500.0,0.00024993,4]
[346019895,1734629444288,-500.0,0.00024993,4]
[346019896,1734629444298,-500.0,0.00024993,4]
[346019897,1734629444306,-500.0,0.00024993,4]
[346019898,1734629444316,-500.0,0.00024993,4]
[346019899,1734629444326,-500.0,0.00024993,4]
[346019900,1734629444336,-500.0,0.00024993,4]
[346019901,1734629444351,-500.0,0.00024993,4]
[346019903,1734629444361,-500.0,0.00024993,4]
[346019904,1734629444370,-500.0,0.00024993,4]
[346019905,1734629444380,-500.0,0.00024993,4]
[346019906,1734629444389,-500.0,0.00024993,4]
[346019907,1734629444398,-500.0,0.00024993,4]
[346019908,1734629444408,-679.41,0.00024993,4]
[346019909,1734629444417,-209.28649422,0.00024993,4]
[346019910,1734629444427,-890.95,0.00024993,4]
[346019911,1734629444437,-500.0,0.00024993,4]
[346019912,1734629444446,-500.0,0.00024993,4]
[346019913,1734629444455,-500.0,0.00024993,4]
[346019914,1734629444465,-500.0,0.00024993,4]
[346019915,1734629444474,-500.0,0.00024993,4]
[346019916,1734629444484,-500.0,0.00024993,4]
[346019917,1734629444493,-578.14,0.00024993,4]
[346019918,1734629444503,-500.0,0.00024993,4]
[346019919,1734629444512,-500.0,0.00024993,4]
[346019920,1734629444521,-500.0,0.00024993,4]
[346019921,1734629444530,-500.0,0.00024993,4]
[346019922,1734629444539,-500.0,0.00024993,4]
[346019924,1734629444548,-585.21,0.00024993,4]
[346019926,1734629444558,-500.0,0.00024993,4]
[346019928,1734629444568,-564.78,0.00024993,4]
[346019930,1734629444578,-500.0,0.00024993,4]
[346019931,1734629444587,-423.40858662,0.00024993,4]
[346019932,1734629444598,-566.37002695,0.00024993,4]
[346019934,1734629444607,-500.0,0.00024993,4]
[346019935,1734629444617,-170.12459583,0.00024993,4]
[346019936,1734629444626,-500.0,0.00024993,4]
[346019937,1734629444636,-500.0,0.00024993,4]
[346019938,1734629444646,-500.0,0.00024993,4]
[346019940,1734629444655,-500.0,0.00024993,4]
[346019942,1734629444664,-500.0,0.00024993,4]
[346019944,1734629444675,-512.75,0.00024993,4]
[346019946,1734629444687,-500.0,0.00024993,4]
[346019948,1734629444696,-500.0,0.00024993,4]
[346019950,1734629444705,-500.0,0.00024993,4]
[346019951,1734629444715,-500.0,0.00024993,4]
[346019952,1734629444727,-323.16,0.00024993,4]
[346019953,1734629444739,-500.0,0.00024993,4]
[346019954,1734629444748,-257.88810443,0.00024993,4]
[346019955,1734629444758,-405.28000239,0.00024993,4]
[346019956,1734629444768,-500.0,0.00024993,4]
[346019957,1734629444778,-500.0,0.00024993,4]
[346019958,1734629444788,-500.0,0.00024993,4]
[346019959,1734629444798,-500.0,0.00024993,4]
[346019960,1734629444808,-500.0,0.00024993,4]
[346019961,1734629444818,-500.0,0.00024993,4]
[346019962,1734629444827,-500.0,0.00024993,4]
[346019963,1734629444837,-500.0,0.00024993,4]
[346019964,1734629444849,-500.0,0.00024993,4]
[346019965,1734629444859,-630.96133369,0.00024993,4]
[346019966,1734629444869,-500.0,0.00024993,4]
[346019967,1734629444879,-500.0,0.00024993,4]
[346019968,1734629445020,-500.0,0.00024993,4]
[346019969,1734629445053,-500.0,0.00024993,4]
[346019970,1734629445064,-500.0,0.00024993,4]
[346019971,1734629445074,-500.0,0.00024993,4]
[346019972,1734629445085,-500.0,0.00024993,4]
[346019973,1734629445098,-500.0,0.00024993,4]
[346019974,1734629445108,-151.0,0.00024993,7]
[346019975,1734629445117,-507.33988598,0.00024993,4]
[346019976,1734629445128,-500.0,0.00024994,4]
[346019977,1734629445137,-500.0,0.00024994,4]
[346019978,1734629445147,-500.0,0.00024994,4]
[346019979,1734629445157,-500.0,0.00024994,4]
[346019981,1734629445167,-500.0,0.00024994,4]
[346019983,1734629445177,-313.33,0.00024994,4]
[346019985,1734629445187,-500.0,0.00024994,4]
[346019987,1734629445197,-500.0,0.00024994,4]
[346019988,1734629445207,-500.0,0.00024994,4]
[346019989,1734629445217,-500.0,0.00024994,4]
[346019990,1734629445226,-500.0,0.00024994,4]
[346019991,1734629445236,-500.0,0.00024994,4]
[346019992,1734629445245,-526.18,0.00024994,4]
[346019993,1734629445254,-500.0,0.00024994,4]
[346019994,1734629445264,-500.0,0.00024994,4]
[346019995,1734629445274,-500.0,0.00024994,4]
[346019996,1734629445284,-606.04,0.00024994,4]
[346019997,1734629445294,-500.0,0.00024994,4]
[346019998,1734629445304,-500.0,0.00024994,4]
[346019999,1734629445313,-500.0,0.00024994,4]
[346020000,1734629445323,-3031.1957289,0.00024995,2]
[346020001,1734629445332,-2485.5738292,0.00024995,2]
[346020002,1734629445344,-1939.9519294,0.00024995,2]
[346020003,1734629445354,-1394.3300296,0.00024995,2]
[346020004,1734629445363,-848.7081298,0.00024995,2]
[346020005,1734629445374,-303.08623,0.00024995,2]
[346020006,1734629445383,-506.5041393,0.00024995,2]
[346020007,1734629445393,-506.5041393,0.00024995,2]
[346020008,1734629445403,-506.5041393,0.00024995,2]
[346020009,1734629445412,-506.5041393,0.00024995,2]
[346020010,1734629445421,-506.5041393,0.00024995,2]
[346020011,1734629445431,-506.5041393,0.00024995,2]
[346020012,1734629445441,-1954.1073699,0.00024995,2]
[346020013,1734629445450,-1601.9857694,0.00024995,2]
[346020014,1734629445460,-1249.8641688,0.00024995,2]
[346020015,1734629445469,-897.7425682,0.00024995,2]
[346020016,1734629445479,-545.6209676,0.00024995,2]
[346020017,1734629445489,-193.499367,0.00024995,2]
[346020018,1734629445499,-349.3850088,0.00024995,2]
[346020019,1734629445508,-349.3850088,0.00024995,2]
[346020020,1734629445518,-349.3850088,0.00024995,2]
[346020021,1734629445527,-349.3850088,0.00024995,2]
[346020022,1734629445537,-349.3850088,0.00024995,2]
[346020023,1734629445546,-349.3850088,0.00024995,2]
[346020024,1734629445556,-999.0,0.00024997,2]
[346020025,1734629445565,-900.0,0.00024998,9]
[346020026,1734629445575,-900.0,0.00024998,9]
[346020027,1734629445584,-900.0,0.00024998,9]
[346020028,1734629445596,-900.0,0.00024998,9]
[346020029,1734629445606,-900.0,0.00024998,9]
[346020030,1734629445615,-900.0,0.00024998,9]
[346020031,1734629445625,-1367292.07675535,0.00024998,4]
[346020032,1734629445635,-1050.485362,0.00024998,5]
[346020033,1734629445645,-168044.63047273,0.00024998,2]
[346020034,1734629445654,-5330.96172839,0.00024998,3]
[346020035,1734629445664,-175.245381,0.00024998,7]
[346020036,1734629445675,-151.0,0.00024998,7]
[346020037,1734629445687,-151.625158,0.00024998,7]
[346020038,1734629445697,-151.0,0.00024998,7]
[346020039,1734629445707,-151.0,0.00024998,7]
[346020040,1734629445716,-158.632544,0.00024998,7]
[346020041,1734629445729,-295.567179,0.00024998,7]
[346020042,1734629445738,-151.0,0.00024998,7]
[346020043,1734629445748,-293.739882,0.00024998,7]
[346020044,1734629445758,-151.0,0.00024998,7]
[346020045,1734629445768,-151.0,0.00024998,7]
[346020046,1734629445778,-151.0,0.00024998,7]
[346020047,1734629445787,-151.0,0.00024998,7]
[346020048,1734629445796,-151.0,0.00024998,7]
[346020049,1734629445806,-151.0,0.00024998,7]
[346020050,1734629445815,-151.0,0.00024998,7]
[346020051,1734629445825,-151.0,0.00024998,7]
[346020052,1734629445835,-151.0,0.00024998,7]
[346020053,1734629445847,-151.0,0.00024998,7]
[346020054,1734629445857,-151.0,0.00024998,7]
[346020055,1734629445866,-151.0,0.00024998,7]
[346020056,1734629445878,-151.0,0.00024998,7]
[346020057,1734629445887,-151.0,0.00024998,7]
[346020058,1734629445897,-151.0,0.00024998,7]
[346020059,1734629445907,-151.0,0.00024998,7]
[346020060,1734629445916,-155.38636,0.00024998,7]
[346020061,1734629445925,-151.0,0.00024998,7]
[346020062,1734629445936,-151.0,0.00024998,7]
[346020063,1734629445945,-151.686112,0.00024998,7]
[346020064,1734629445954,-151.0,0.00024998,7]
[346020065,1734629445964,-151.0,0.00024998,7]
[346020066,1734629445974,-239.971695,0.00024998,7]
[346020067,1734629445984,-151.0,0.00024998,7]
[346020068,1734629445993,-151.0,0.00024998,7]
[346020069,1734629446003,-151.0,0.00024998,7]
[346020071,1734629446013,-151.0,0.00024998,7]
[346020073,1734629446023,-151.0,0.00024998,7]
[346020075,1734629446033,-151.0,0.00024998,7]
[346020076,1734629446042,-151.68592,0.00024998,7]
[346020077,1734629446052,-151.0,0.00024998,7]
[346020078,1734629446062,-151.0,0.00024998,7]
[346020079,1734629446072,-151.0,0.00024998,7]
[346020080,1734629446082,-160.872672,0.00024998,7]
[346020081,1734629446094,-1032.11258673,0.00024999,10]
[346020082,1734629446105,-1032.11258673,0.00024999,10]
[346020083,1734629446115,-19331.93746319,0.00024999,120]
[346020084,1734629446125,-1000.0,0.00024999,2]
[346020085,1734629446135,-1000.0,0.00024999,2]
[346020086,1734629446145,-500.0,0.00024999,2]
[346020087,1734629446155,-3481.9020981,0.00024999,2]
[346020088,1734629446164,-1412.07928014,0.00025,2]
[346020089,1734629446174,-1289669.00919843,0.00025,2]
[346020090,1734629446184,-3192.44562178,0.00025,60]
[346020091,1734629446194,-241976.07459042,0.00025,2]
[346020092,1734629446212,-10210.2000005,0.00025,2]
[346020093,1734629446223,-282.31,0.00025,2]
[346020094,1734629446234,-1606.229472,0.00025,2]
[346020095,1734629446261,-500.0,0.0002484,4]
[346020096,1734629446271,-500.0,0.0002484,4]
[346020097,1734629446281,-5018.8488772,0.00025,2]
[346020098,1734629446296,-444.36219303,0.00025,2]
[346020099,1734629446312,-11815.0,0.00025,2]
[346020100,1734629446323,-491976.4705281,0.00025,2]
[346020101,1734629446334,-1135.91579819,0.00025,2]
[346020102,1734629446351,-14724.76713577,0.00025,2]
[346020103,1734629446363,-320.19388192,0.00025,2]
[346020104,1734629446375,-178149.999999,0.00025,2]
[346020105,1734629446386,-5908.34779999,0.00025,2]
[346020106,1734629446399,-3949.3,0.00025,2]
[346020107,1734629446411,-41228.81154306,0.00025,2]
[346020108,1734629446423,-2167.52216438,0.00025,2]
[346020109,1734629446434,-2481.57987107,0.00025,2]
[346020110,1734629446445,-2833.62159635,0.00025,2]
[346020111,1734629446456,-574.69999951,0.00025,2]
[346020112,1734629446467,-5026.92821092,0.00025,2]
[346020113,1734629446478,-1000.93842479,0.00025,2]
[346020114,1734629446573,-3106.62930965,0.00025,2]
[346020115,1734629446636,-29561.57042889,0.00025,2]
[346020116,1734629446650,-60673.07441545,0.00025,2]
[346020117,1734629446661,-1145.915985,0.00025,2]
[346020118,1734629816060,4079.2447692,0.00018023,2]
[346020119,1734629840810,5000.0,0.00018023,2]
[346020121,1734630306778,181.44,0.00010137,2]
[346020140,1734630632421,-489.1,0.00020908,2]
[346020141,1734630632432,-210.83603081,0.00021164,2]
[346020142,1734630632444,-289.16396919,0.00021164,2]
[346020143,1734630632454,-500.0,0.00021164,2]
[346020144,1734630632464,-1000.0,0.0002225,2]
[346020145,1734630632474,-192.81603081,0.0002225,2]
[346020146,1734630633113,-143.70396919,0.0002225,2]
[346020147,1734630633123,-160.28,0.00022301,2]
[346020148,1734630633134,-424.67,0.00022431,2]
[346020149,1734630633144,-192.644615,0.00022535,2]
[346020150,1734630633154,-70.69241581,0.00022635,2]
[346020151,1734630633176,-99.75758419,0.00022635,2]
[346020152,1734630633187,-203.27,0.00022664,2]
[346020153,1734630633198,-182.29,0.00022707,2]
[346020154,1734630633210,-150.0,0.00022795,2]
[346020155,1734630633227,-157.6,0.00022809,30]
[346020156,1734630633244,-459.92840166,0.0002281,2]
[346020157,1734630636602,-84.53059834,0.0002281,2]
[346020158,1734630636611,-167.09,0.00022851,2]
[346020159,1734630636621,-250.0,0.00022893,2]
[346020160,1734630636630,-151.23745351,0.00022899,4]
[346020161,1734630636640,-348.76254649,0.00022899,4]
[346020162,1734630636650,-112.06245832,0.00022899,4]
[346020163,1734630636687,-387.93754168,0.00022899,4]
[346020164,1734630636697,-500.0,0.00022899,4]
[346020165,1734630636706,-546.13515831,0.00022899,4]
[346020166,1734630636715,-500.0,0.00022899,4]
[346020167,1734630636724,-500.0,0.00022899,4]
[346020168,1734630636733,-500.0,0.00022899,4]
[346020169,1734630636742,-500.0,0.00022899,4]
[346020170,1734630636751,-500.0,0.00022899,4]
[346020171,1734630636761,-500.0,0.00022899,4]
[346020172,1734630636770,-651.1,0.00022899,4]
[346020173,1734630636779,-500.0,0.00022899,4]
[346020174,1734630636789,-500.0,0.00022899,4]
[346020175,1734630636799,-500.0,0.00022899,4]
[346020176,1734630636808,-554.05,0.00022899,4]
[346020177,1734630636817,-500.0,0.00022899,4]
[346020178,1734630636827,-500.0,0.00022899,4]
[346020179,1734630636836,-169.53612374,0.00022899,4]
[346020180,1734630636845,-500.0,0.00022899,4]
[346020181,1734630636854,-500.0,0.00022899,4]
[346020182,1734630636864,-560.82,0.00022899,4]
[346020183,1734630636874,-500.0,0.00022899,4]
[346020184,1734630636883,-442.89399955,0.00022899,4]
[346020185,1734630636893,-500.0,0.00022899,4]
[346020186,1734630636903,-500.0,0.00022899,4]
[346020187,1734630636917,-206.8555783,0.00022899,4]
[346020188,1734630636927,-500.0,0.00022899,4]
[346020189,1734630636937,-500.0,0.00022899,4]
[346020190,1734630636946,-500.0,0.00022899,4]
[346020192,1734630636956,-500.0,0.00022899,4]
[346020194,1734630636965,-500.0,0.00022899,4]
[346020195,1734630636974,-393.23176303,0.00022899,4]
[346020196,1734630636984,-500.0,0.00022899,4]
[346020197,1734630636993,-500.0,0.00022899,4]
[346020198,1734630637003,-500.0,0.00022899,4]
[346020199,1734630637012,-500.0,0.00022899,4]
[346020200,1734630637021,-500.0,0.00022899,4]
[346020201,1734630637031,-500.0,0.00022899,4]
[346020202,1734630637041,-500.0,0.00022899,4]
[346020203,1734630637050,-500.0,0.00022899,4]
[346020204,1734630637060,-500.0,0.00022899,4]
[346020207,1734630637209,-500.0,0.00022899,4]
[346020210,1734630637270,-500.0,0.00022899,4]
[346020212,1734630637280,-500.0,0.00022899,4]
[346020213,1734630637289,-408.92792945,0.00022899,4]
[346020214,1734630637298,-500.0,0.00022899,4]
[346020215,1734630637307,-500.0,0.00022899,4]
[346020216,1734630637316,-500.0,0.00022899,4]
[346020217,1734630637325,-500.0,0.00022899,4]
[346020218,1734630637334,-430.4169163,0.00022899,4]
[346020219,1734630637344,-500.0,0.00022899,4]
[346020220,1734630637354,-500.0,0.00022899,4]
[346020221,1734630637363,-246.2492,0.00022899,4]
[346020222,1734630637372,-500.0,0.00022899,4]
[346020223,1734630637381,-500.0,0.00022899,4]
[346020224,1734630637391,-163.15449453,0.00022899,4]
[346020225,1734630637400,-500.0,0.00022899,4]
[346020226,1734630637409,-500.0,0.00022899,4]
[346020227,1734630637422,-500.0,0.00022899,4]
[346020228,1734630637431,-176.77653641,0.00022899,4]
[346020229,1734630637440,-500.0,0.00022899,4]
[346020230,1734630637449,-500.0,0.00022899,4]
[346020231,1734630637458,-151.64,0.00022899,4]
[346020232,1734630637467,-500.0,0.00022899,4]
[346020233,1734630637477,-500.0,0.00022899,4]
[346020234,1734630637486,-500.0,0.00022899,4]
[346020235,1734630637496,-500.0,0.00022899,2]
[346020236,1734630637505,-413.76,0.00022899,4]
[346020237,1734630637514,-500.0,0.00022899,4]
[346020238,1734630637523,-503.46835808,0.00022899,4]
[346020239,1734630637533,-500.0,0.00022899,4]
[346020240,1734630637542,-500.0,0.00022899,4]
[346020241,1734630637551,-500.0,0.00022899,4]
[346020242,1734630637560,-500.0,0.00022899,4]
[346020243,1734630637569,-500.0,0.00022899,4]
[346020244,1734630637579,-500.0,0.00022899,4]
[346020245,1734630637588,-500.0,0.00022899,4]
[346020246,1734630637597,-500.0,0.00022899,4]
[346020247,1734630637606,-500.0,0.00022899,4]
[346020248,1734630637615,-500.0,0.00022899,4]
[346020249,1734630637624,-784.45,0.00022899,4]
[346020250,1734630637633,-500.0,0.00022899,4]
[346020251,1734630637642,-1107.44,0.00022899,4]
[346020252,1734630637651,-515.62,0.00022899,4]
[346020253,1734630637660,-500.0,0.00022899,4]
[346020254,1734630637673,-500.0,0.00022899,4]
[346020255,1734630637683,-500.0,0.00022899,4]
[346020256,1734630637692,-500.0,0.00022899,4]
[346020257,1734630637701,-500.0,0.00022899,4]
[346020258,1734630637711,-500.0,0.00022899,4]
[346020259,1734630637719,-500.0,0.00022899,4]
[346020260,1734630637729,-500.0,0.00022899,4]
[346020261,1734630637738,-500.0,0.00022899,4]
[346020262,1734630637747,-500.0,0.00022899,4]
[346020263,1734630637756,-500.0,0.00022899,4]
[346020264,1734630637765,-500.0,0.00022899,4]
[346020265,1734630637774,-500.0,0.00022899,4]
[346020266,1734630637783,-500.0,0.00022899,4]
[346020267,1734630637792,-500.0,0.00022899,4]
[346020268,1734630637802,-504.25,0.00022899,4]
[346020269,1734630637811,-500.0,0.00022899,4]
[346020270,1734630637820,-500.0,0.00022899,4]
[346020271,1734630637830,-580.79,0.00022899,4]
[346020272,1734630637840,-292.1,0.00022899,4]
[346020273,1734630637850,-500.0,0.00022899,4]
[346020274,1734630637859,-500.0,0.00022899,4]
[346020275,1734630637868,-722.89,0.000229,2]
[346020276,1734630637878,-264.33393,0.00023088,7]
[346020277,1734630637887,-489.1,0.00023172,2]
[346020278,1734630637897,-500.0,0.00023173,4]
[346020279,1734630637906,-500.0,0.00023173,4]
[346020280,1734630637921,-500.0,0.00023173,4]
[346020281,1734630637930,-500.0,0.00023173,4]
[346020282,1734630637940,-500.0,0.00023173,4]
[346020283,1734630637949,-500.0,0.00023173,4]
[346020284,1734630637959,-500.0,0.00023173,4]
[346020285,1734630637969,-500.0,0.00023173,4]
[346020286,1734630637979,-500.0,0.00023173,4]
[346020287,1734630637988,-651.1,0.00023173,4]
[346020288,1734630637998,-500.0,0.00023173,4]
[346020289,1734630638008,-500.0,0.00023173,4]
[346020290,1734630638017,-500.0,0.00023173,4]
[346020291,1734630638027,-554.05,0.00023173,4]
[346020292,1734630638036,-500.0,0.00023173,4]
[346020293,1734630638046,-500.0,0.00023173,4]
[346020294,1734630638055,-500.0,0.00023173,4]
[346020295,1734630638065,-500.0,0.00023173,4]
[346020296,1734630638075,-560.82,0.00023173,4]
[346020297,1734630638086,-500.0,0.00023173,4]
[346020298,1734630638096,-500.0,0.00023173,4]
[346020299,1734630638109,-500.0,0.00023173,4]
[346020301,1734630638119,-500.0,0.00023173,4]
[346020302,1734630638129,-500.0,0.00023173,4]
[346020303,1734630638138,-500.0,0.00023173,4]
[346020304,1734630638148,-500.0,0.00023173,4]
[346020305,1734630638157,-500.0,0.00023173,4]
[346020306,1734630638171,-500.0,0.00023173,4]
[346020307,1734630638183,-500.0,0.00023173,4]
[346020308,1734630638194,-500.0,0.00023173,4]
[346020310,1734630638203,-500.0,0.00023173,4]
[346020311,1734630638213,-500.0,0.00023173,4]
[346020312,1734630638224,-500.0,0.00023173,4]
[346020313,1734630638233,-500.0,0.00023173,4]
[346020314,1734630638243,-415.9954492,0.00023173,4]
[346020315,1734630638252,-500.0,0.00023173,4]
[346020316,1734630638262,-500.0,0.00023173,4]
[346020317,1734630638271,-500.0,0.00023173,4]
[346020318,1734630638281,-500.0,0.00023173,4]
[346020319,1734630638291,-500.0,0.00023173,4]
[346020320,1734630638300,-464.85137243,0.00023173,4]
[346020321,1734630638310,-500.0,0.00023173,4]
[346020322,1734630638320,-500.0,0.00023173,4]
[346020323,1734630638329,-380.86,0.00023173,4]
[346020325,1734630638339,-500.0,0.00023173,4]
[346020326,1734630638349,-500.0,0.00023173,4]
[346020328,1734630638358,-500.0,0.00023173,2]
[346020329,1734630638368,-500.0,0.00023173,4]
[346020330,1734630638378,-387.81,0.00023173,4]
[346020331,1734630638388,-500.0,0.00023173,4]
[346020332,1734630638397,-500.0,0.00023173,4]
[346020333,1734630638407,-784.45,0.00023173,4]
[346020334,1734630638420,-1107.44,0.00023173,4]
[346020335,1734630638429,-515.62,0.00023173,4]
[346020336,1734630638439,-500.0,0.00023173,4]
[346020337,1734630638448,-500.0,0.00023173,4]
[346020338,1734630638458,-500.0,0.00023173,4]
[346020339,1734630638468,-418.82597551,0.00023173,4]
[346020340,1734630638477,-500.0,0.00023173,4]
[346020341,1734630638487,-500.0,0.00023173,4]
[346020342,1734630638497,-500.0,0.00023173,4]
[346020343,1734630638506,-500.0,0.00023173,4]
[346020344,1734630638516,-500.0,0.00023173,4]
[346020345,1734630638525,-500.0,0.00023173,4]
[346020346,1734630638535,-500.0,0.00023173,4]
[346020347,1734630638544,-500.0,0.00023173,4]
[346020348,1734630638554,-500.0,0.00023173,4]
[346020349,1734630638564,-500.0,0.00023173,4]
[346020350,1734630638573,-504.25,0.00023173,4]
[346020351,1734630638583,-500.0,0.00023173,4]
[346020352,1734630638594,-500.0,0.00023173,4]
[346020353,1734630638603,-580.79,0.00023173,4]
[346020354,1734630638612,-500.0,0.00023173,4]
[346020355,1734630638621,-500.0,0.00023173,4]
[346020356,1734630638630,-264.33393,0.00023288,7]
[346020357,1734630638639,-1008.9374957,0.00023347,2]
[346020358,1734630638648,-500.0,0.00023447,4]
[346020359,1734630638657,-500.0,0.00023447,4]
[346020360,1734630638672,-500.0,0.00023447,4]
[346020361,1734630638682,-500.0,0.00023447,4]
[346020362,1734630638691,-245.103128,0.00023447,4]
[346020363,1734630638700,-500.0,0.00023447,4]
[346020364,1734630638710,-500.0,0.00023447,4]
[346020365,1734630638719,-210.41908371,0.00023447,4]
[346020366,1734630638729,-500.0,0.00023447,4]
[346020367,1734630638739,-651.1,0.00023447,4]
[346020368,1734630638748,-500.0,0.00023447,4]
[346020369,1734630638757,-500.0,0.00023447,4]
[346020370,1734630638766,-500.0,0.00023447,4]
[346020371,1734630638776,-554.05,0.00023447,4]
[346020372,1734630638785,-500.0,0.00023447,4]
[346020373,1734630638795,-500.0,0.00023447,4]
[346020374,1734630638805,-500.0,0.00023447,4]
[346020375,1734630638814,-500.0,0.00023447,4]
[346020376,1734630638824,-560.82,0.00023447,4]
[346020377,1734630638834,-500.0,0.00023447,4]
[346020378,1734630638844,-500.0,0.00023447,4]
[346020379,1734630638854,-500.0,0.00023447,4]
[346020380,1734630638864,-352.19098937,0.00023447,4]
[346020381,1734630638873,-500.0,0.00023447,4]
[346020383,1734630638883,-500.0,0.00023447,4]
[346020385,1734630638893,-500.0,0.00023447,4]
[346020387,1734630638902,-500.0,0.00023447,4]
[346020389,1734630638912,-500.0,0.00023447,4]
[346020391,1734630638927,-372.9,0.00023447,4]
[346020392,1734630638937,-500.0,0.00023447,4]
[346020393,1734630638946,-500.0,0.00023447,4]
[346020394,1734630638956,-500.0,0.00023447,4]
[346020396,1734630638966,-202.56,0.00023447,4]
[346020397,1734630638975,-500.0,0.00023447,4]
[346020399,1734630638984,-603.48814868,0.00023447,4]
[346020400,1734630638994,-500.0,0.00023447,4]
[346020401,1734630639004,-500.0,0.00023447,4]
[346020402,1734630639013,-500.0,0.00023447,4]
[346020403,1734630639023,-500.0,0.00023447,4]
[346020404,1734630639032,-500.0,0.00023447,2]
[346020405,1734630639041,-514.24,0.00023447,4]
[346020406,1734630639051,-500.0,0.00023447,4]